[Event "*** Titled Tuesday Blitz"]
[Site "Chess.com"]
[Date "2021.02.02"]
[Round "8"]
[White "Philosopherrr"]
[Black "joshdaruca"]
[Result "1-0"]
[WhiteElo "2597"]
[BlackElo "2722"]
[TimeControl "180+1"]
[EndTime "11:29:50 PST"]
[Termination "Philosopherrr won by resignation"]

1. e4 {[%clk 0:02:57]} 1... e6 {[%clk 0:02:54.1]} 2. d4 {[%clk 0:02:56.6]} 2...
d5 {[%clk 0:02:54]} 3. Nc3 {[%clk 0:02:57.2]} 3... Bb4 {[%clk 0:02:53.3]} 4. e5
{[%clk 0:02:57.7]} 4... b6 {[%clk 0:02:53.2]} 5. Bb5+ {[%clk 0:02:55.8]} 5... c6
{[%clk 0:02:51.9]} 6. Ba4 {[%clk 0:02:55.8]} 6... Qd7 {[%clk 0:02:49.1]} 7. Bd2
{[%clk 0:02:46]} 7... a5 {[%clk 0:02:47.9]} 8. a3 {[%clk 0:02:43.8]} 8... Bf8
{[%clk 0:02:47.2]} 9. Nce2 {[%clk 0:02:41.5]} 9... Ba6 {[%clk 0:02:38.5]} 10. c3
{[%clk 0:02:32.5]} 10... Ne7 {[%clk 0:02:22.1]} 11. Bc2 {[%clk 0:02:31]} 11...
c5 {[%clk 0:02:17.2]} 12. Nf3 {[%clk 0:02:28.5]} 12... Nbc6 {[%clk 0:01:46.1]}
13. O-O {[%clk 0:02:26.6]} 13... cxd4 {[%clk 0:01:41.3]} 14. cxd4 {[%clk
0:02:24.3]} 14... Nf5 {[%clk 0:01:30.2]} 15. Bxf5 {[%clk 0:02:07]} 15... exf5
{[%clk 0:01:31.1]} 16. Re1 {[%clk 0:02:03.8]} 16... Bxe2 {[%clk 0:01:19.9]} 17.
Qxe2 {[%clk 0:02:04]} 17... Nd8 {[%clk 0:01:19.5]} 18. Qd3 {[%clk 0:01:52.2]}
18... g6 {[%clk 0:01:10.6]} 19. Bg5 {[%clk 0:01:49.1]} 19... Be7 {[%clk
0:01:09.5]} 20. Bxe7 {[%clk 0:01:28.5]} 20... Kxe7 {[%clk 0:01:04.3]} 21. h4
{[%clk 0:01:21.7]} 21... Ne6 {[%clk 0:00:55.8]} 22. Qd2 {[%clk 0:01:21.5]} 22...
h6 {[%clk 0:00:51]} 23. Rac1 {[%clk 0:01:19]} 23... Rac8 {[%clk 0:00:44.4]} 24.
Rxc8 {[%clk 0:01:18.5]} 24... Qxc8 {[%clk 0:00:45.3]} 25. Rc1 {[%clk 0:01:18.5]}
25... Qa6 {[%clk 0:00:39.9]} 26. b4 {[%clk 0:01:10.6]} 26... f4 {[%clk
0:00:34.9]} 27. bxa5 {[%clk 0:01:05.3]} 27... Qxa5 {[%clk 0:00:33.1]} 28. Qd3
{[%clk 0:00:54.4]} 28... Ra8 {[%clk 0:00:24.2]} 29. Rc3 {[%clk 0:00:54.5]} 29...
Qa6 {[%clk 0:00:21]} 30. Qc2 {[%clk 0:00:51.6]} 30... Qb5 {[%clk 0:00:20.3]} 31.
h5 {[%clk 0:00:51.1]} 31... g5 {[%clk 0:00:19.9]} 32. Qf5 {[%clk 0:00:49.2]}
32... Qb2 {[%clk 0:00:19.1]} 33. Qf6+ {[%clk 0:00:47.7]} 33... Ke8 {[%clk
0:00:19.6]} 34. Rc6 {[%clk 0:00:46.4]} 34... Rxa3 {[%clk 0:00:18.1]} 35. Rc8+
{[%clk 0:00:22.8]} 35... Kd7 {[%clk 0:00:18.1]} 36. Rg8 {[%clk 0:00:20.4]} 36...
Ra1+ {[%clk 0:00:15.5]} 37. Kh2 {[%clk 0:00:20.7]} 37... Kc6 {[%clk 0:00:13.8]}
38. Qxf7 {[%clk 0:00:19.4]} 38... Nxd4 {[%clk 0:00:13.9]} 39. Rc8+ {[%clk
0:00:17.8]} 39... Kb5 {[%clk 0:00:13.9]} 40. Qxd5+ {[%clk 0:00:18.1]} 40... Kb4
{[%clk 0:00:14]} 41. Nxd4 {[%clk 0:00:17.9]} 41... Qxd4 {[%clk 0:00:14.9]} 42.
Qxd4+ {[%clk 0:00:18.1]} 1-0

[Event "*** Titled Tuesday Blitz"]
[Site "Chess.com"]
[Date "2021.02.02"]
[Round "8"]
[White "c_r_e_e_p_e_r"]
[Black "Natalya_Buksa"]
[Result "0-1"]
[WhiteElo "2380"]
[BlackElo "2560"]
[TimeControl "180+1"]
[EndTime "11:29:50 PST"]
[Termination "Natalya_Buksa won by resignation"]

1. e4 {[%clk 0:03:00.9]} 1... c5 {[%clk 0:02:57.1]} 2. Nf3 {[%clk 0:03:01.4]}
2... Nc6 {[%clk 0:02:57.1]} 3. d4 {[%clk 0:03:01]} 3... cxd4 {[%clk 0:02:57.3]}
4. Nxd4 {[%clk 0:03:01.9]} 4... Nf6 {[%clk 0:02:57.7]} 5. Nc3 {[%clk 0:03:02.6]}
5... e5 {[%clk 0:02:58.1]} 6. Ndb5 {[%clk 0:03:03]} 6... d6 {[%clk 0:02:58.6]}
7. Bg5 {[%clk 0:03:03.5]} 7... a6 {[%clk 0:02:59.1]} 8. Na3 {[%clk 0:03:04]}
8... b5 {[%clk 0:02:59.7]} 9. Bxf6 {[%clk 0:03:04.4]} 9... gxf6 {[%clk
0:03:00.2]} 10. Nd5 {[%clk 0:03:05]} 10... f5 {[%clk 0:03:00.7]} 11. g3 {[%clk
0:03:05.6]} 11... Be6 {[%clk 0:03:01.2]} 12. Bg2 {[%clk 0:03:05.5]} 12... Rc8
{[%clk 0:03:01.5]} 13. O-O {[%clk 0:03:03]} 13... Bg7 {[%clk 0:03:01.8]} 14. c3
{[%clk 0:02:59.3]} 14... Ne7 {[%clk 0:02:59.2]} 15. Nc2 {[%clk 0:02:57.8]} 15...
Nxd5 {[%clk 0:02:56.7]} 16. exd5 {[%clk 0:02:57.6]} 16... Bd7 {[%clk 0:02:57.3]}
17. Qh5 {[%clk 0:02:50.6]} 17... Qf6 {[%clk 0:02:56]} 18. f4 {[%clk 0:02:44.4]}
18... Qg6 {[%clk 0:02:52]} 19. Qe2 {[%clk 0:02:41.3]} 19... O-O {[%clk 0:02:52]}
20. Ne3 {[%clk 0:02:37.6]} 20... Rfe8 {[%clk 0:02:50.9]} 21. Qd3 {[%clk
0:02:27.7]} 21... e4 {[%clk 0:02:28.2]} 22. Qd2 {[%clk 0:02:21.1]} 22... h5
{[%clk 0:02:24.6]} 23. Kh1 {[%clk 0:02:17.5]} 23... Kh7 {[%clk 0:02:21.2]} 24.
Rg1 {[%clk 0:02:14.2]} 24... Rg8 {[%clk 0:02:21.2]} 25. Bf1 {[%clk 0:02:02.2]}
25... Bf6 {[%clk 0:02:16.1]} 26. Be2 {[%clk 0:02:00.8]} 26... Qh6 {[%clk
0:02:14.2]} 27. Raf1 {[%clk 0:01:53.7]} 27... Rg7 {[%clk 0:02:10.5]} 28. Qd1
{[%clk 0:01:49]} 28... b4 {[%clk 0:01:49.8]} 29. c4 {[%clk 0:01:14.1]} 29...
Bxb2 {[%clk 0:01:48]} 30. Bxh5 {[%clk 0:01:08.4]} 30... Qf6 {[%clk 0:01:37]} 31.
g4 {[%clk 0:01:02]} 31... Kg8 {[%clk 0:01:04.5]} 32. gxf5 {[%clk 0:00:48]} 32...
Rxg1+ {[%clk 0:00:52]} 33. Rxg1+ {[%clk 0:00:47.9]} 33... Kf8 {[%clk 0:00:52.9]}
34. Ng4 {[%clk 0:00:16.4]} 34... Qh8 {[%clk 0:00:52.6]} 35. Ne3 {[%clk
0:00:04.4]} 35... Bd4 {[%clk 0:00:45.8]} 36. Rg3 {[%clk 0:00:04.8]} 36... Bxe3
{[%clk 0:00:41.7]} 37. Rxe3 {[%clk 0:00:05.7]} 37... Rxc4 {[%clk 0:00:42.1]} 38.
Rh3 {[%clk 0:00:03.8]} 38... Qb2 {[%clk 0:00:40.4]} 39. Qg4 {[%clk 0:00:01.8]}
39... Rc1+ {[%clk 0:00:39.9]} 40. Qg1 {[%clk 0:00:02.1]} 40... Rxg1+ {[%clk
0:00:39]} 41. Kxg1 {[%clk 0:00:03]} 41... Bxf5 {[%clk 0:00:36.9]} 42. Rg3 {[%clk
0:00:02.9]} 42... Qa1+ {[%clk 0:00:35.5]} 43. Kg2 {[%clk 0:00:03.4]} 43... Qxa2+
{[%clk 0:00:35.8]} 44. Kg1 {[%clk 0:00:03]} 44... b3 {[%clk 0:00:36.3]} 45. Re3
{[%clk 0:00:01.6]} 45... b2 {[%clk 0:00:36.4]} 0-1

[Event "*** Titled Tuesday Blitz"]
[Site "Chess.com"]
[Date "2021.02.02"]
[Round "8"]
[White "TimKett"]
[Black "MaxLeto"]
[Result "1-0"]
[WhiteElo "2195"]
[BlackElo "2305"]
[TimeControl "180+1"]
[EndTime "11:29:51 PST"]
[Termination "TimKett won by resignation"]

1. d4 {[%clk 0:03:00.9]} 1... b6 {[%clk 0:02:56.7]} 2. e4 {[%clk 0:03:00.2]}
2... Bb7 {[%clk 0:02:57.6]} 3. Nc3 {[%clk 0:02:58.6]} 3... e6 {[%clk 0:02:57.6]}
4. Bd3 {[%clk 0:02:58.7]} 4... d6 {[%clk 0:02:57.6]} 5. Nge2 {[%clk 0:02:58.8]}
5... a6 {[%clk 0:02:58]} 6. Be3 {[%clk 0:02:54]} 6... Nd7 {[%clk 0:02:58.4]} 7.
Qd2 {[%clk 0:02:53.2]} 7... Ngf6 {[%clk 0:02:54.7]} 8. O-O-O {[%clk 0:02:51.9]}
8... Ng4 {[%clk 0:02:53.5]} 9. Kb1 {[%clk 0:02:48.8]} 9... Be7 {[%clk 0:02:51]}
10. f4 {[%clk 0:02:46]} 10... Nxe3 {[%clk 0:02:50.2]} 11. Qxe3 {[%clk
0:02:46.5]} 11... O-O {[%clk 0:02:46.3]} 12. e5 {[%clk 0:02:46.4]} 12... b5
{[%clk 0:02:37.2]} 13. Ne4 {[%clk 0:02:41.7]} 13... Nb6 {[%clk 0:02:28.1]} 14.
Qh3 {[%clk 0:02:38.4]} 14... g6 {[%clk 0:02:20.8]} 15. Qh6 {[%clk 0:02:33.4]}
15... Nd5 {[%clk 0:02:00]} 16. N2g3 {[%clk 0:01:50.1]} 16... Ne3 {[%clk
0:01:48.2]} 17. Rde1 {[%clk 0:00:56]} 17... Ng4 {[%clk 0:01:46.9]} 18. Qh3
{[%clk 0:00:54.2]} 18... Bxe4 {[%clk 0:01:37.4]} 19. Nxe4 {[%clk 0:00:44.2]}
19... h5 {[%clk 0:01:31.1]} 20. Qf3 {[%clk 0:00:35.7]} 20... d5 {[%clk
0:00:50.8]} 21. Nd2 {[%clk 0:00:35.6]} 21... c5 {[%clk 0:00:49.2]} 22. c3 {[%clk
0:00:32.3]} 22... cxd4 {[%clk 0:00:42.2]} 23. cxd4 {[%clk 0:00:32.3]} 23... Bb4
{[%clk 0:00:42.5]} 24. Re2 {[%clk 0:00:31.1]} 24... Qb6 {[%clk 0:00:42.9]} 25.
Nb3 {[%clk 0:00:28.7]} 25... a5 {[%clk 0:00:40.2]} 26. h3 {[%clk 0:00:29]} 26...
Nh6 {[%clk 0:00:36.7]} 27. g4 {[%clk 0:00:29.2]} 27... h4 {[%clk 0:00:35.9]} 28.
f5 {[%clk 0:00:28.6]} 28... a4 {[%clk 0:00:32.4]} 29. Nc5 {[%clk 0:00:28.1]}
29... Bxc5 {[%clk 0:00:30.9]} 30. dxc5 {[%clk 0:00:28.7]} 30... Qxc5 {[%clk
0:00:27]} 31. Qf4 {[%clk 0:00:29.3]} 31... Kg7 {[%clk 0:00:20.3]} 32. Qg5 {[%clk
0:00:21.1]} 32... exf5 {[%clk 0:00:16.5]} 33. gxf5 {[%clk 0:00:20.4]} 33... Ra6
{[%clk 0:00:08.9]} 34. f6+ {[%clk 0:00:19.4]} 34... Kh7 {[%clk 0:00:08.6]} 35.
Rg2 {[%clk 0:00:18.3]} 35... d4 {[%clk 0:00:03.9]} 36. Bxg6+ {[%clk 0:00:15.9]}
1-0

[Event "*** Titled Tuesday Blitz"]
[Site "Chess.com"]
[Date "2021.02.02"]
[Round "8"]
[White "starplatinum2030"]
[Black "Vamostodorecto"]
[Result "1-0"]
[WhiteElo "2110"]
[BlackElo "2408"]
[TimeControl "180+1"]
[EndTime "11:29:54 PST"]
[Termination "starplatinum2030 won on time"]

1. e4 {[%clk 0:03:00.9]} 1... e5 {[%clk 0:02:48.3]} 2. Nf3 {[%clk 0:03:00]} 2...
Nc6 {[%clk 0:02:39.9]} 3. c3 {[%clk 0:02:59.3]} 3... Nf6 {[%clk 0:02:36.4]} 4.
d4 {[%clk 0:02:54.5]} 4... exd4 {[%clk 0:02:37.3]} 5. e5 {[%clk 0:02:54]} 5...
Ne4 {[%clk 0:02:36.6]} 6. cxd4 {[%clk 0:02:53.1]} 6... d5 {[%clk 0:02:36.7]} 7.
Nc3 {[%clk 0:02:49.3]} 7... Bb4 {[%clk 0:02:35.5]} 8. Qb3 {[%clk 0:02:45.9]}
8... Bg4 {[%clk 0:02:30.2]} 9. a3 {[%clk 0:02:40.6]} 9... Ba5 {[%clk 0:02:15]}
10. Qxb7 {[%clk 0:02:29.2]} 10... Nxc3 {[%clk 0:02:08.5]} 11. Qxc6+ {[%clk
0:02:16.5]} 11... Bd7 {[%clk 0:02:07.9]} 12. Qc5 {[%clk 0:02:15.8]} 12... Nb5+
{[%clk 0:01:48.9]} 13. b4 {[%clk 0:01:56.8]} 13... Bb6 {[%clk 0:01:48.7]} 14.
Qxd5 {[%clk 0:01:55.9]} 14... O-O {[%clk 0:01:47.4]} 15. Bxb5 {[%clk 0:01:53.7]}
15... Bxb5 {[%clk 0:00:57.6]} 16. Qxb5 {[%clk 0:01:51.6]} 16... a5 {[%clk
0:00:47.5]} 17. O-O {[%clk 0:01:48.9]} 17... axb4 {[%clk 0:00:37.2]} 18. Qxb4
{[%clk 0:01:49.8]} 18... Qd5 {[%clk 0:00:36.9]} 19. Be3 {[%clk 0:01:46]} 19...
Rfe8 {[%clk 0:00:34]} 20. Nd2 {[%clk 0:01:43.7]} 20... h6 {[%clk 0:00:34.2]} 21.
Qc4 {[%clk 0:01:43.4]} 21... Qb7 {[%clk 0:00:33.1]} 22. a4 {[%clk 0:01:40.9]}
22... Re6 {[%clk 0:00:30.2]} 23. Rfb1 {[%clk 0:01:37.9]} 23... Rg6 {[%clk
0:00:30]} 24. d5 {[%clk 0:01:35.3]} 24... Ra5 {[%clk 0:00:17.5]} 25. Bxb6 {[%clk
0:01:33.5]} 25... cxb6 {[%clk 0:00:18.4]} 26. Rb5 {[%clk 0:01:30.9]} 26... Ra8
{[%clk 0:00:17.2]} 27. Rab1 {[%clk 0:01:29.6]} 27... Qd7 {[%clk 0:00:13.5]} 28.
d6 {[%clk 0:01:24.6]} 28... Qh3 {[%clk 0:00:10.9]} 29. Qd5 {[%clk 0:01:20.4]}
29... Rc8 {[%clk 0:00:09.8]} 30. Qf3 {[%clk 0:01:18.8]} 30... Qe6 {[%clk
0:00:09.1]} 31. Rxb6 {[%clk 0:01:17.3]} 31... Qxe5 {[%clk 0:00:09.2]} 32. d7
{[%clk 0:01:08.6]} 32... Rd8 {[%clk 0:00:08]} 33. Nc4 {[%clk 0:01:05.6]} 33...
Qe7 {[%clk 0:00:05.8]} 34. Rb8 {[%clk 0:01:01.2]} 34... Qxd7 {[%clk 0:00:05]}
35. a5 {[%clk 0:00:45.8]} 35... Kh7 {[%clk 0:00:04.4]} 36. Rxd8 {[%clk
0:00:44.5]} 36... Qxd8 {[%clk 0:00:05.3]} 37. a6 {[%clk 0:00:44.7]} 37... Qd4
{[%clk 0:00:05.5]} 38. Ne5 {[%clk 0:00:35]} 38... Rxa6 {[%clk 0:00:03.2]} 39.
Qf5+ {[%clk 0:00:29.8]} 1-0

[Event "*** Titled Tuesday Blitz"]
[Site "Chess.com"]
[Date "2021.02.02"]
[Round "8"]
[White "arctic_t00"]
[Black "PavelShkapenko"]
[Result "0-1"]
[WhiteElo "2540"]
[BlackElo "2732"]
[TimeControl "180+1"]
[EndTime "11:29:55 PST"]
[Termination "PavelShkapenko won by checkmate"]

1. d4 {[%clk 0:03:00.9]} 1... Nf6 {[%clk 0:02:59.1]} 2. Nf3 {[%clk 0:03:00.5]}
2... e6 {[%clk 0:02:59.5]} 3. e3 {[%clk 0:03:00.4]} 3... c5 {[%clk 0:02:58.2]}
4. Bd3 {[%clk 0:03:00.7]} 4... d5 {[%clk 0:02:58.3]} 5. b3 {[%clk 0:03:00]} 5...
Nc6 {[%clk 0:02:58.2]} 6. O-O {[%clk 0:03:00.1]} 6... Bd6 {[%clk 0:02:58.2]} 7.
Bb2 {[%clk 0:02:59.9]} 7... O-O {[%clk 0:02:58.2]} 8. c4 {[%clk 0:02:56.8]} 8...
b6 {[%clk 0:02:42]} 9. Nc3 {[%clk 0:02:52.9]} 9... cxd4 {[%clk 0:02:36.7]} 10.
exd4 {[%clk 0:02:52.6]} 10... dxc4 {[%clk 0:02:36.8]} 11. bxc4 {[%clk
0:02:52.3]} 11... Bb7 {[%clk 0:02:37.2]} 12. a3 {[%clk 0:02:38.9]} 12... Rc8
{[%clk 0:02:36.3]} 13. Qe2 {[%clk 0:02:38.4]} 13... Bb8 {[%clk 0:01:57.7]} 14.
Rad1 {[%clk 0:02:33]} 14... Qd6 {[%clk 0:01:54.7]} 15. g3 {[%clk 0:02:10.6]}
15... Rfe8 {[%clk 0:01:28.4]} 16. Rfe1 {[%clk 0:02:06.2]} 16... Ne7 {[%clk
0:01:22.1]} 17. Ne5 {[%clk 0:01:58.8]} 17... Nf5 {[%clk 0:01:17.8]} 18. Nb5
{[%clk 0:01:45.5]} 18... Qd8 {[%clk 0:01:13.7]} 19. d5 {[%clk 0:01:38.8]} 19...
Nd6 {[%clk 0:00:58.2]} 20. Ng4 {[%clk 0:01:11.6]} 20... e5 {[%clk 0:00:37.2]}
21. Bxe5 {[%clk 0:00:52.7]} 21... Nxb5 {[%clk 0:00:35.5]} 22. Nxf6+ {[%clk
0:00:35.9]} 22... gxf6 {[%clk 0:00:32.9]} 23. Bxh7+ {[%clk 0:00:14.5]} 23...
Kxh7 {[%clk 0:00:28]} 24. Qh5+ {[%clk 0:00:13.9]} 24... Kg8 {[%clk 0:00:28.2]}
25. Re4 {[%clk 0:00:06]} 25... Rxe5 {[%clk 0:00:27.6]} 26. Rxe5 {[%clk
0:00:05.3]} 26... Bxe5 {[%clk 0:00:27.1]} 27. cxb5 {[%clk 0:00:05.6]} 27... Qd7
{[%clk 0:00:20.8]} 28. h3 {[%clk 0:00:03.1]} 28... Rc5 {[%clk 0:00:10.9]} 29.
Kh2 {[%clk 0:00:02.5]} 29... Rxd5 {[%clk 0:00:10.4]} 30. Re1 {[%clk 0:00:03.4]}
30... Rd2 {[%clk 0:00:09]} 31. Kg1 {[%clk 0:00:03.8]} 31... Kf8 {[%clk
0:00:07.9]} 32. Re3 {[%clk 0:00:02.9]} 32... Rd1+ {[%clk 0:00:05.4]} 33. Kh2
{[%clk 0:00:03.5]} 33... Rh1# {[%clk 0:00:05.7]} 0-1

[Event "*** Titled Tuesday Blitz"]
[Site "Chess.com"]
[Date "2021.02.02"]
[Round "8"]
[White "J36225"]
[Black "Grandmaster2B"]
[Result "1-0"]
[WhiteElo "2459"]
[BlackElo "2575"]
[TimeControl "180+1"]
[EndTime "11:29:55 PST"]
[Termination "J36225 won on time"]

1. e4 {[%clk 0:02:58.1]} 1... c5 {[%clk 0:03:00.1]} 2. Nf3 {[%clk 0:02:58.2]}
2... d6 {[%clk 0:03:00.7]} 3. Bb5+ {[%clk 0:02:57.6]} 3... Nd7 {[%clk
0:03:00.8]} 4. O-O {[%clk 0:02:57]} 4... Nf6 {[%clk 0:02:59.3]} 5. Re1 {[%clk
0:02:56.4]} 5... a6 {[%clk 0:02:55]} 6. Bf1 {[%clk 0:02:56]} 6... e5 {[%clk
0:02:52.8]} 7. c3 {[%clk 0:02:55.9]} 7... Be7 {[%clk 0:02:51.3]} 8. d4 {[%clk
0:02:55.8]} 8... O-O {[%clk 0:02:51.9]} 9. d5 {[%clk 0:02:50.9]} 9... Ne8 {[%clk
0:02:26.2]} 10. Nbd2 {[%clk 0:02:49.9]} 10... g6 {[%clk 0:02:26.7]} 11. a4
{[%clk 0:02:48.5]} 11... Ng7 {[%clk 0:02:26.7]} 12. Nc4 {[%clk 0:02:45.6]} 12...
Rb8 {[%clk 0:02:20.4]} 13. Bh6 {[%clk 0:02:42.3]} 13... f5 {[%clk 0:01:57.7]}
14. exf5 {[%clk 0:02:33.9]} 14... Rxf5 {[%clk 0:01:47.6]} 15. Ne3 {[%clk
0:02:31.5]} 15... Rh5 {[%clk 0:01:42.6]} 16. Bxg7 {[%clk 0:02:27.2]} 16... Kxg7
{[%clk 0:01:43.5]} 17. Be2 {[%clk 0:02:17.2]} 17... Nf6 {[%clk 0:01:28.5]} 18.
h3 {[%clk 0:02:06.2]} 18... Bd7 {[%clk 0:01:15.7]} 19. Nh2 {[%clk 0:02:05.3]}
19... Rh6 {[%clk 0:01:12.5]} 20. Nhg4 {[%clk 0:02:04.6]} 20... Nxg4 {[%clk
0:01:12.8]} 21. Bxg4 {[%clk 0:01:59]} 21... Rh4 {[%clk 0:01:03.6]} 22. g3 {[%clk
0:01:47.4]} 22... Rh6 {[%clk 0:00:36.7]} 23. Kg2 {[%clk 0:01:45.7]} 23... Bxg4
{[%clk 0:00:35.8]} 24. Nxg4 {[%clk 0:01:45]} 24... Rh5 {[%clk 0:00:36]} 25. Ne3
{[%clk 0:01:41.2]} 25... Qd7 {[%clk 0:00:29.5]} 26. Qg4 {[%clk 0:01:40.1]} 26...
Rd8 {[%clk 0:00:19.4]} 27. Qxd7 {[%clk 0:01:33.1]} 27... Rxd7 {[%clk 0:00:20.3]}
28. g4 {[%clk 0:01:33.8]} 28... Rh4 {[%clk 0:00:14.5]} 29. f3 {[%clk 0:01:31.2]}
29... Bg5 {[%clk 0:00:14.8]} 30. Nf1 {[%clk 0:00:58.3]} 30... Bf4 {[%clk
0:00:13.8]} 31. Ng3 {[%clk 0:00:58]} 31... Bxg3 {[%clk 0:00:13.4]} 32. Kxg3
{[%clk 0:00:57.8]} 32... g5 {[%clk 0:00:14.1]} 33. a5 {[%clk 0:00:57.1]} 33...
Rh6 {[%clk 0:00:13.6]} 34. Re4 {[%clk 0:00:56.4]} 34... Rf6 {[%clk 0:00:13.5]}
35. Ra3 {[%clk 0:00:49.8]} 35... Rdf7 {[%clk 0:00:13.4]} 36. c4 {[%clk
0:00:49.5]} 36... Kg6 {[%clk 0:00:13]} 37. Rb3 {[%clk 0:00:49]} 37... h5 {[%clk
0:00:10.1]} 38. Ree3 {[%clk 0:00:45.8]} 38... Rf4 {[%clk 0:00:06]} 39. Rb6
{[%clk 0:00:43.3]} 39... Rd7 {[%clk 0:00:03.3]} 40. Rxe5 {[%clk 0:00:40.9]}
40... Rxc4 {[%clk 0:00:02.2]} 41. Re6+ {[%clk 0:00:40.6]} 41... Kg7 {[%clk
0:00:01.3]} 42. Rexd6 {[%clk 0:00:41.5]} 42... Rxd6 {[%clk 0:00:01.4]} 43. Rxd6
{[%clk 0:00:41.3]} 43... h4+ {[%clk 0:00:02.3]} 44. Kf2 {[%clk 0:00:38.1]} 44...
Rc2+ {[%clk 0:00:03.2]} 45. Ke3 {[%clk 0:00:38.1]} 45... Rxb2 {[%clk 0:00:04.1]}
46. Ke4 {[%clk 0:00:38.1]} 1-0

[Event "*** Titled Tuesday Blitz"]
[Site "Chess.com"]
[Date "2021.02.02"]
[Round "8"]
[White "onnoelgersma"]
[Black "gumimis"]
[Result "1-0"]
[WhiteElo "2469"]
[BlackElo "2320"]
[TimeControl "180+1"]
[EndTime "11:29:55 PST"]
[Termination "onnoelgersma won on time"]

1. Nf3 {[%clk 0:03:00.9]} 1... Nf6 {[%clk 0:02:56.6]} 2. e3 {[%clk 0:02:59.7]}
2... g6 {[%clk 0:02:55.5]} 3. b3 {[%clk 0:02:59.6]} 3... Bg7 {[%clk 0:02:55.5]}
4. Bb2 {[%clk 0:03:00.5]} 4... O-O {[%clk 0:02:56.3]} 5. Be2 {[%clk 0:03:00.4]}
5... b6 {[%clk 0:02:55.8]} 6. d4 {[%clk 0:03:00]} 6... Bb7 {[%clk 0:02:55.8]} 7.
O-O {[%clk 0:03:00.2]} 7... d6 {[%clk 0:02:54.3]} 8. c4 {[%clk 0:03:00.1]} 8...
c5 {[%clk 0:02:52.1]} 9. Nbd2 {[%clk 0:02:59.8]} 9... Nbd7 {[%clk 0:02:50.4]}
10. Qc2 {[%clk 0:02:52.3]} 10... Qc7 {[%clk 0:02:49.7]} 11. a3 {[%clk
0:02:46.8]} 11... e5 {[%clk 0:02:32.2]} 12. d5 {[%clk 0:02:41.7]} 12... Ne8
{[%clk 0:02:24.8]} 13. b4 {[%clk 0:02:34.6]} 13... f5 {[%clk 0:02:16.4]} 14. Ng5
{[%clk 0:02:34]} 14... Qc8 {[%clk 0:01:59]} 15. Ne6 {[%clk 0:02:31.8]} 15... Rf7
{[%clk 0:01:54.7]} 16. e4 {[%clk 0:02:21]} 16... Bh8 {[%clk 0:01:51.4]} 17. exf5
{[%clk 0:02:18.9]} 17... gxf5 {[%clk 0:01:48.1]} 18. f4 {[%clk 0:02:18.3]} 18...
Nc7 {[%clk 0:01:37.8]} 19. Bh5 {[%clk 0:02:11.8]} 19... Rf6 {[%clk 0:01:28.3]}
20. Nxc7 {[%clk 0:02:06.5]} 20... Qxc7 {[%clk 0:01:27.6]} 21. fxe5 {[%clk
0:02:07.4]} 21... Nxe5 {[%clk 0:01:26.4]} 22. Rxf5 {[%clk 0:02:05.8]} 22... Raf8
{[%clk 0:01:17.1]} 23. Raf1 {[%clk 0:02:02.9]} 23... Bc8 {[%clk 0:01:09.6]} 24.
Rg5+ {[%clk 0:01:58.9]} 24... Bg7 {[%clk 0:01:01.8]} 25. Rxf6 {[%clk 0:01:44]}
25... Rxf6 {[%clk 0:01:02.7]} 26. Ne4 {[%clk 0:01:26.2]} 26... Rf8 {[%clk
0:00:49.9]} 27. Nxd6 {[%clk 0:01:09.4]} 27... Qxd6 {[%clk 0:00:24.2]} 28. Bxe5
{[%clk 0:01:08.4]} 28... Qxe5 {[%clk 0:00:23.3]} 29. Rxe5 {[%clk 0:01:07.7]}
29... Bxe5 {[%clk 0:00:24.2]} 30. g3 {[%clk 0:01:00.8]} 30... Bh3 {[%clk
0:00:22.3]} 31. Be2 {[%clk 0:00:45.3]} 31... Bd4+ {[%clk 0:00:20.1]} 32. Kh1
{[%clk 0:00:44.4]} 32... Bf5 {[%clk 0:00:03.9]} 33. Bd3 {[%clk 0:00:43.4]} 33...
Bh3 {[%clk 0:00:03.1]} 34. Qe2 {[%clk 0:00:20.8]} 1-0

[Event "*** Titled Tuesday Blitz"]
[Site "Chess.com"]
[Date "2021.02.02"]
[Round "8"]
[White "Camels1981"]
[Black "FMOlexandrProhorov"]
[Result "1-0"]
[WhiteElo "2298"]
[BlackElo "2149"]
[TimeControl "180+1"]
[EndTime "11:29:56 PST"]
[Termination "Camels1981 won on time"]

1. e4 {[%clk 0:03:00.9]} 1... e5 {[%clk 0:02:57.3]} 2. Nc3 {[%clk 0:02:57.4]}
2... Nf6 {[%clk 0:02:57.1]} 3. g3 {[%clk 0:02:57.3]} 3... Nc6 {[%clk 0:02:54.6]}
4. Bg2 {[%clk 0:02:56.9]} 4... Bc5 {[%clk 0:02:54.7]} 5. Nge2 {[%clk 0:02:56.8]}
5... d6 {[%clk 0:02:54.3]} 6. O-O {[%clk 0:02:56.8]} 6... a6 {[%clk 0:02:53.3]}
7. Nd5 {[%clk 0:02:56.8]} 7... O-O {[%clk 0:02:49.6]} 8. c3 {[%clk 0:02:57]}
8... Ba7 {[%clk 0:02:41]} 9. d4 {[%clk 0:02:54.1]} 9... Re8 {[%clk 0:02:41.1]}
10. Bg5 {[%clk 0:02:53.8]} 10... exd4 {[%clk 0:01:50]} 11. Nxd4 {[%clk
0:02:44.4]} 11... Be6 {[%clk 0:01:40.4]} 12. Nxf6+ {[%clk 0:02:44]} 12... gxf6
{[%clk 0:01:40]} 13. Bh6 {[%clk 0:02:43.9]} 13... Kh8 {[%clk 0:01:38.3]} 14. Re1
{[%clk 0:02:23.5]} 14... Rg8 {[%clk 0:01:35.4]} 15. Nxe6 {[%clk 0:02:04.4]}
15... fxe6 {[%clk 0:01:35.2]} 16. Qb3 {[%clk 0:02:04.9]} 16... Qd7 {[%clk
0:01:30.6]} 17. Rad1 {[%clk 0:02:02]} 17... Rab8 {[%clk 0:01:13.7]} 18. Bh3
{[%clk 0:02:01.9]} 18... Nd8 {[%clk 0:01:07.2]} 19. e5 {[%clk 0:02:00.2]} 19...
fxe5 {[%clk 0:01:05.4]} 20. Rxe5 {[%clk 0:01:54.8]} 20... Qf7 {[%clk 0:00:57]}
21. Re2 {[%clk 0:01:43.9]} 21... Rg6 {[%clk 0:00:55]} 22. Be3 {[%clk 0:01:42]}
22... Bxe3 {[%clk 0:00:54.3]} 23. Rxe3 {[%clk 0:01:38.3]} 23... e5 {[%clk
0:00:55.2]} 24. Qxf7 {[%clk 0:01:35.5]} 24... Nxf7 {[%clk 0:00:55]} 25. Bg2
{[%clk 0:01:32]} 25... Ng5 {[%clk 0:00:53.6]} 26. h4 {[%clk 0:01:30.6]} 26...
Ne6 {[%clk 0:00:53.7]} 27. Be4 {[%clk 0:01:30.7]} 27... Rf6 {[%clk 0:00:53.4]}
28. Kg2 {[%clk 0:01:29.6]} 28... Nc5 {[%clk 0:00:53.3]} 29. Bc2 {[%clk 0:01:29]}
29... Rbf8 {[%clk 0:00:53.3]} 30. Rd2 {[%clk 0:01:28.2]} 30... Kg7 {[%clk
0:00:52.4]} 31. b4 {[%clk 0:01:28]} 31... Ne6 {[%clk 0:00:50.4]} 32. a4 {[%clk
0:01:27.7]} 32... h6 {[%clk 0:00:47.7]} 33. Re4 {[%clk 0:01:25.9]} 33... Rf3
{[%clk 0:00:40.8]} 34. Rg4+ {[%clk 0:01:25.5]} 34... Kh8 {[%clk 0:00:40.7]} 35.
Rg6 {[%clk 0:01:25.5]} 35... R3f6 {[%clk 0:00:39.8]} 36. Rxf6 {[%clk 0:01:24.1]}
36... Rxf6 {[%clk 0:00:40.7]} 37. Bb3 {[%clk 0:01:24.3]} 37... Ng7 {[%clk
0:00:37.4]} 38. b5 {[%clk 0:01:24.2]} 38... axb5 {[%clk 0:00:36.8]} 39. axb5
{[%clk 0:01:24.1]} 39... Nf5 {[%clk 0:00:37.7]} 40. Ra2 {[%clk 0:01:22.9]} 40...
e4 {[%clk 0:00:27.9]} 41. Re2 {[%clk 0:01:08.8]} 41... e3 {[%clk 0:00:22.2]} 42.
f3 {[%clk 0:01:06.4]} 42... Rg6 {[%clk 0:00:17.6]} 43. g4 {[%clk 0:01:06.4]}
43... Ng7 {[%clk 0:00:02.6]} 44. Rxe3 {[%clk 0:01:04.9]} 44... h5 {[%clk
0:00:02.1]} 45. Bc2 {[%clk 0:00:50.3]} 45... Rf6 {[%clk 0:00:01.8]} 46. g5
{[%clk 0:00:49.7]} 46... Rf4 {[%clk 0:00:02.2]} 47. Re4 {[%clk 0:00:43.8]} 1-0